Workbook

Sheet Operation Scenario 1
A1: Freq.Sweep | B1: Bus 23 | C1: Bus 23 | D1: Bus 23 | E1: Bus 23 | F1: Bus 23 | G1: Bus 23 | H1: Bus 23 | I1: Bus 23 | J1: Bus 23
A2: Frequency in Hz | B2: R1 in Ohm | C2: R2 in Ohm | D2: R0 in Ohm | E2: X1 in Ohm | F2: X2 in Ohm | G2: X0 in Ohm | H2: L1 in mH | I2: L2 in mH | J2: L0 in mH
A3: 50 | B3: 4.950798 | C3: 3.842523 | D3: 1.986267 | E3: 25.028125 | F3: 22.778175 | G3: 13.451234 | H3: =1000*E3/(2*PI()*A3) -> 79.6669962 | I3: =1000*F3/(2*PI()*A3) -> 72.50518292 | J3: =1000*G3/(2*PI()*A3) -> 42.81660764
A4: 60 | B4: 6.127684 | C4: 4.73196 | D4: 2.127021 | E4: 29.575081 | F4: 27.029101 | G4: 15.916872 | H4: =1000*E4/(2*PI()*A4) -> 78.45033889 | I4: =1000*F4/(2*PI()*A4) -> 71.69691719 | J4: =1000*G4/(2*PI()*A4) -> 42.22081429
A5: 70 | B5: 7.366947 | C5: 5.678066 | D5: 2.237745 | E5: 34.04348 | F5: 31.228642 | G5: 18.390909 | H5: 77.40268746 | I5: 71.00275343 | J5: 41.81434393
A6: 80 | B6: 8.67083 | C6: 6.679475 | D6: 2.328611 | E6: 38.473183 | F6: 35.406785 | G6: 20.877148 | H6: 76.53996564 | I6: 70.43956065 | J6: 41.53376627
A7: 90 | B7: 10.056598 | C7: 7.746211 | D7: 2.406332 | E7: 42.897389 | F7: 39.590867 | G7: 23.377201 | H7: 75.85923895 | I7: 70.01202427 | J7: 41.33996772
A8: 100 | B8: 11.553248 | C8: 8.897863 | D8: 2.47533 | E8: 47.340455 | F8: 43.803566 | G8: 25.891874 | H8: 75.34467421 | I8: 69.71554054 | J8: 41.20819733
A9: 110 | B9: 13.199609 | C9: 10.162528 | D9: 2.538555 | E9: 51.816293 | F9: 48.061513 | G9: 28.421762 | H9: 74.97108331 | I9: 69.5384306 | J9: 41.12239922
A10: 120 | B10: 15.043348 | C10: 11.576477 | D10: 2.598008 | E10: 56.326121 | F10: 52.373691 | G10: 30.967496 | H10: 74.70483819 | I10: 69.46276509 | J10: 41.0719172
A11: 130 | B11: 17.140059 | C11: 13.184195 | D11: 2.655077 | E11: 60.8547 | F11: 56.738909 | G11: 33.529834 | H11: 74.50251012 | I11: 69.46367564 | J11: 41.0495294
A12: 140 | B12: 19.551148 | C12: 15.038176 | D12: 2.710749 | E12: 65.36446 | F12: 61.141728 | G12: 36.109702 | H12: 74.30769223 | I12: 69.50720172 | J12: 41.05026833
A13: 150 | B13: 22.338543 | C13: 17.197344 | D13: 2.765747 | E13: 69.787351 | F13: 65.546292 | G13: 38.7082 | H13: 74.04667918 | I13: 69.54677582 | J13: 41.07067579
A14: 160 | B14: 25.553292 | C14: 19.722246 | D14: 2.820636 | E14: 74.015347 | F14: 69.887865 | G14: 41.32662 | H14: 73.62442712 | I14: 69.51874486 | J14: 41.10834909
A15: 170 | B15: 29.214336 | C15: 22.66403 | D15: 2.875933 | E15: 77.893088 | F15: 74.062961 | G15: 43.966466 | H15: 72.92394111 | I15: 69.33815496 | J15: 41.16164938
A16: 180 | B16: 33.274913 | C16: 26.043478 | D16: 2.932358 | E16: 81.220773 | F16: 77.92164 | G16: 46.629433 | H16: 71.81493058 | I16: 68.89785655 | J16: 41.22947086
A17: 190 | B17: 37.58046 | C17: 29.817579 | D17: 2.991352 | E17: 83.780973 | F17: 81.270291 | G17: 49.316541 | H17: 70.17976837 | I17: 68.07667652 | J17: 41.31037514
A18: 200 | B18: 41.836755 | C18: 33.838104 | D18: 3.051341 | E18: 85.403286 | F18: 83.898901 | G18: 52.026356 | H18: 67.96177562 | I18: 66.76462407 | J18: 41.40125864
A19: 210 | B19: 45.625193 | C19: 37.822254 | D19: 3.108689 | E19: 86.063242 | F19: 85.646055 | G19: 54.765299 | H19: 65.22566849 | I19: 64.90949052 | J19: 41.50556212
A20: 220 | B20: 48.499247 | C20: 41.372835 | D20: 3.167704 | E20: 85.9714 | F20: 86.495097 | G20: 57.537207 | H20: 62.19442398 | I20: 62.57328291 | J20: 41.62423139
A21: 230 | B21: 50.144511 | C21: 44.077955 | D21: 3.229094 | E21: 85.576994 | F21: 86.653339 | G21: 60.343007 | H21: 59.2173983 | I21: 59.96220538 | J21: 41.75603411
A22: 240 | B22: 50.511132 | C22: 45.663258 | D22: 3.292742 | E22: 85.448036 | F22: 86.541054 | G22: 63.185164 | H22: 56.66448878 | I22: 57.38931885 | J22: 41.90096325
A23: 250 | B23: 49.824741 | C23: 46.101988 | D23: 3.358712 | E23: 86.091004 | F23: 86.665894 | G23: 66.066807 | H23: 54.80723537 | I23: 55.17322171 | J23: 42.05943563
A24: 260 | B24: 48.479375 | C24: 45.602397 | D24: 3.427187 | E24: 87.825731 | F24: 87.457774 | G24: 68.991505 | H24: 53.76115084 | I24: 53.53591171 | J24: 42.23207328
A25: 270 | B25: 46.903315 | C25: 44.493575 | D25: 3.498428 | E25: 90.768888 | F25: 89.172939 | G25: 71.963289 | H25: 53.50487853 | I25: 52.56412604 | J25: 42.41967839
A26: 280 | B26: 45.475096 | C26: 43.102537 | D26: 3.572764 | E26: 94.887114 | F26: 91.905003 | G26: 74.986726 | H26: 53.93483296 | I26: 52.23976972 | J26: 42.62324325
A27: 290 | B27: 44.496413 | C27: 41.693551 | D27: 3.650596 | E27: 100.05564 | F27: 95.659368 | G27: 78.067029 | H27: 54.91155066 | I27: 52.49883197 | J27: 42.84397779
A28: 300 | B28: 44.186012 | C28: 40.481739 | D28: 3.732419 | E28: 106.097534 | F28: 100.424501 | G28: 81.2102 | H28: 56.28648995 | I28: 53.27685247 | J28: 43.0833492
A29: 310 | B29: 44.675008 | C29: 39.687265 | D29: 3.818847 | E29: 112.822041 | F29: 106.188448 | G29: 84.423209 | H29: 57.92317908 | I29: 54.51747225 | J29: 43.34313234
A30: 320 | B30: 46.024414 | C30: 39.560459 | D30: 3.910648 | E30: 120.072931 | F30: 112.891054 | G30: 87.714231 | H30: 59.71937656 | I30: 56.14740398 | J30: 43.62547951
A31: 330 | B31: 48.279303 | C31: 40.327829 | D31: 4.008802 | E31: 127.755637 | F31: 120.385522 | G31: 91.092965 | H31: 61.61497314 | I31: 58.06045728 | J31: 43.93301715
A32: 340 | B32: 51.528705 | C32: 42.130319 | D32: 4.114572 | E32: 135.815066 | F32: 128.492054 | G32: 94.571053 | H32: 63.57540912 | I32: 60.14748689 | J32: 44.26897223
A33: 350 | B33: 55.936039 | C33: 45.058346 | D33: 4.229626 | E33: 144.176558 | F33: 137.082217 | G33: 98.162666 | H33: 65.56117681 | I33: 62.33517842 | J33: 44.63735292
A34: 360 | B34: 61.731257 | C34: 49.247112 | D34: 4.356206 | E34: 152.668371 | F34: 146.084949 | G34: 101.885325 | H34: 67.49423861 | I34: 64.58372707 | J34: 45.04320306
A35: 370 | B35: 69.147862 | C35: 54.945026 | D35: 4.497412 | E35: 160.923486 | F35: 155.414116 | G35: 105.761094 | H35: 69.22099529 | I35: 66.85114807 | J35: 45.4929754
A36: 380 | B36: 78.229288 | C36: 62.532784 | D36: 4.657673 | E36: 168.274652 | F36: 164.854386 | G36: 109.818367 | H36: 70.47827017 | I36: 69.04576427 | J36: 45.99509461
A37: 390 | B37: 88.35438 | C37: 72.479801 | D37: 4.843626 | E37: 173.810151 | F37: 173.897302 | G37: 114.094702 | H37: 70.93011459 | I37: 70.96568001 | J37: 46.56086104
A38: 400 | B38: 97.524514 | C38: 85.1416 | D38: 5.065956 | E38: 177.216778 | F38: 181.508991 | G38: 118.641611 | H38: 70.51231554 | I38: 72.22013283 | J38: 47.20599712
A39: 410 | B39: 102.886503 | C39: 100.153402 | D39: 5.344016 | E39: 181.24698 | F39: 185.958953 | G39: 123.533439 | H39: 70.35695802 | I39: 72.18606483 | J39: 47.95355477
A40: 420 | B40: 105.687955 | C40: 115.21046 | D40: 5.720824 | E40: 193.238045 | F40: 185.408609 | G40: 128.885695 | H40: 73.22569061 | I40: 70.25880146 | J40: 48.83998917
A41: 430 | B41: 116.94615 | C41: 125.396027 | D41: 6.330962 | E41: 218.562507 | F41: 180.705367 | G41: 134.891818 | H41: 80.89605433 | I41: 66.88407535 | J41: 49.92720841
A42: 440 | B42: 153.529249 | C42: 127.156805 | D42: 7.789071 | E42: 250.516162 | F42: 179.251294 | G42: 141.697405 | H42: 90.61564888 | I42: 64.83802158 | J42: 51.25418734
A43: 450 | B43: 228.377319 | C43: 126.609982 | D43: 9.965939 | E43: 263.500256 | F43: 191.95139 | G43: 147.193418 | H43: 93.19415166 | I43: 67.88891678 | J43: 52.05902237
A44: 460 | B44: 321.423988 | C44: 141.227461 | D44: 9.775734 | E44: 209.61978 | F44: 222.881847 | G44: 154.732406 | H44: 72.52613947 | I44: 77.11466886 | J44: 53.53571146
A45: 470 | B45: 346.835126 | C45: 197.763622 | D45: 11.015786 | E45: 88.388451 | F45: 259.853645 | G45: 165.327931 | H45: 29.93076359 | I45: 87.99360017 | J45: 55.98459032
A46: 480 | B46: 283.683034 | C46: 318.579372 | D46: 14.008306 | E46: 0.945107 | F46: 241.48104 | G46: 179.066485 | H46: 0.3133717725 | I46: 80.06854412 | J46: 59.37357548
A47: 490 | B47: 209.332322 | C47: 387.495752 | D47: 20.368049 | E47: -20.412599 | F47: 80.009785 | G47: 198.319563 | H47: -6.63013476 | I47: 25.98765873 | J47: 64.41538523
A48: 500 | B48: 157.856762 | C48: 287.019533 | D48: 36.181422 | E48: -11.169944 | F48: -43.219587 | G48: 228.338968 | H48: -3.555503603 | I48: -13.75722182 | J48: 72.68255092
A49: 510 | B49: 121.806396 | C49: 185.027097 | D49: 89.459385 | E49: 2.889238 | F49: -52.109899 | G49: 277.481894 | H49: 0.9016402146 | I49: -16.26185884 | J49: 86.59336284
A50: 520 | B50: 89.810121 | C50: 121.489727 | D50: 287.233721 | E50: 29.520214 | F50: -27.487218 | G50: 234.735531 | H50: 9.035169191 | I50: -8.412935801 | J50: 71.8448463
A51: 530 | B51: 77.75556 | C51: 87.212409 | D51: 171.353491 | E51: 60.861371 | F51: 8.813267 | G51: -8.028554 | H51: 18.27620385 | I51: 2.646556619 | J51: -2.410913311
A52: 540 | B52: 74.479333 | C52: 71.280458 | D52: 61.725078 | E52: 87.467586 | F52: 39.673997 | G52: 31.991477 | H52: 25.77944199 | I52: 11.69317173 | J52: 9.42889204
A53: 550 | B53: 76.336123 | C53: 63.069738 | D53: 32.583848 | E53: 112.298224 | F53: 66.258716 | G53: 68.719306 | H53: 32.49603173 | I53: 19.1734585 | J53: 19.88548588
A54: 560 | B54: 83.69466 | C54: 59.763561 | D54: 21.87585 | E54: 136.725353 | F54: 90.589417 | G54: 91.978398 | H54: 38.85806389 | I54: 25.74598841 | J54: 26.14074411
A55: 570 | B55: 98.501942 | C55: 60.491459 | D55: 16.946925 | E55: 160.8949 | F55: 113.877779 | G55: 108.271139 | H55: 44.92494501 | I55: 31.79686217 | J55: 30.23138064
A56: 580 | B56: 124.553298 | C56: 65.442474 | D56: 14.383319 | E56: 182.866491 | F56: 136.962002 | G56: 120.861646 | H56: 50.17949305 | I56: 37.58306833 | J56: 33.16504895
A57: 590 | B57: 167.015449 | C57: 75.881732 | D57: 13.00999 | E57: 194.969375 | F57: 160.266766 | G57: 131.371965 | H57: 52.59379624 | I57: 43.23262377 | J57: 35.43813155
A58: 600 | B58: 224.098846 | C58: 94.592197 | D58: 12.391558 | E58: 177.167237 | F58: 183.186932 | G58: 140.705382 | H58: 46.9950692 | I58: 48.5918429 | J58: 37.32326177
A59: 610 | B59: 260.70799 | C59: 126.350823 | D59: 12.468688 | E59: 109.420944 | F59: 201.892658 | G59: 149.439637 | H59: 28.54899035 | I59: 52.67576147 | J59: 38.99025725
A60: 620 | B60: 228.959854 | C60: 175.213468 | D60: 13.626 | E60: 33.547753 | F60: 203.484949 | G60: 157.933089 | H60: 8.611759225 | I60: 52.23489593 | J60: 40.54166418
A61: 630 | B61: 162.875077 | C61: 226.062248 | D61: 17.150108 | E61: 9.301267 | F61: 162.858877 | G61: 165.634736 | H61: 2.349750191 | I61: 41.14253222 | J61: 41.84378886
A62: 640 | B62: 110.829491 | C62: 225.846918 | D62: 22.575507 | E62: 23.875919 | F62: 86.827965 | G62: 167.77639 | H62: 5.937453953 | I62: 21.59234348 | J62: 41.72256532
A63: 650 | B63: 78.941909 | C63: 169.593759 | D63: 19.790951 | E63: 51.127907 | F63: 44.328326 | G63: 166.932375 | H63: 12.5188602 | I63: 10.85395723 | J63: 40.87401945
A64: 660 | B64: 60.587803 | C64: 114.250066 | D64: 15.295448 | E64: 80.387515 | F64: 49.791001 | G64: 172.476505 | H64: 19.38495511 | I64: 12.00679383 | J64: 41.591649
A65: 670 | B65: 50.66015 | C65: 79.225396 | D65: 13.220702 | E65: 109.046691 | F65: 74.848547 | G65: 179.663897 | H65: 25.90346254 | I65: 17.77987498 | J65: 42.67820493
A66: 680 | B66: 46.803056 | C66: 59.543085 | D66: 12.335721 | E66: 136.787346 | F66: 104.152893 | G66: 186.806334 | H66: 32.01526804 | I66: 24.37712906 | J66: 43.72228155
A67: 690 | B67: 48.585283 | C67: 49.601646 | D67: 11.971862 | E67: 162.803714 | F67: 133.4694 | G67: 193.787971 | H67: 37.55219686 | I67: 30.78596342 | J67: 44.69900507
A68: 700 | B68: 54.581139 | C68: 46.964516 | D68: 11.866878 | E68: 183.58974 | F68: 161.621127 | G68: 200.690271 | H68: =1000*E68/(2*PI()*A68) -> 41.74173517 | I68: =1000*F68/(2*PI()*A68) -> 36.74685896 | J68: =1000*G68/(2*PI()*A68) -> 45.6297838
A69: 710 | B69: 56.582097 | C69: 50.529293 | D69: 11.914311 | E69: 198.170785 | F69: 185.759614 | G69: 207.593984 | H69: 44.42233804 | I69: 41.64022647 | J69: 46.53466015
A70: 720 | B70: 51.141842 | C70: 53.116406 | D70: 12.065728 | E70: 216.795 | F70: 202.297634 | G70: 214.55951 | H70: 47.92221651 | I70: 44.71759504 | J70: 47.42806473
A71: 730 | B71: 45.320044 | C71: 46.631662 | D71: 12.29688 | E71: 244.273433 | F71: 221.414676 | G71: 221.634927 | H71: 53.25660867 | I71: 48.27293172 | J71: 48.32095095
A72: 740 | B72: 46.907294 | C72: 44.81338 | D72: 12.596323 | E72: 278.468346 | F72: 252.155262 | G72: 228.861322 | H72: 59.89136995 | I72: 54.23210321 | J72: 49.22217659
A73: 750 | B73: 49.035656 | C73: 46.20279 | D73: 12.960593 | E73: 310.796581 | F73: 278.83013 | G73: 236.275911 | H73: 65.95308288 | I73: 59.1695913 | J73: 50.13930556
A74: 760 | B74: 51.409825 | C74: 46.020043 | D74: 13.392556 | E74: 350.552489 | F74: 311.206709 | G74: 243.91416 | H74: 73.41073873 | I74: 65.17116587 | J74: 51.07913718
A75: 770 | B75: 56.500694 | C75: 47.94278 | D75: 13.901997 | E75: 397.771209 | F75: 349.299105 | G75: 251.810998 | H75: 82.21721316 | I75: 72.19828465 | J75: 52.04800657
A76: 780 | B76: 64.857804 | C76: 52.216187 | D76: 14.508687 | E76: 454.519703 | F76: 393.719742 | G76: 260.000502 | H76: 92.74238137 | I76: 80.33646555 | J76: 53.05175013
A77: 790 | B77: 77.758183 | C77: 59.245158 | D77: 15.249078 | E77: 524.607028 | F77: 446.410407 | G77: 268.51134 | H77: 105.6883566 | I77: 89.93471256 | J77: 54.09481903
A78: 800 | B78: 97.803132 | C78: 69.999825 | D78: 16.186961 | E78: 614.237015 | F78: 510.526193 | G78: 277.348678 | H78: 122.1985715 | I78: 101.565959 | J78: 55.17676633
A79: 810 | B79: 130.324891 | C79: 86.395756 | D79: 17.412093 | E79: 733.938439 | F79: 591.028153 | G79: 286.435067 | H79: 144.2097907 | I79: 116.1296939 | J79: 56.28093431
A80: 820 | B80: 187.271699 | C80: 112.200185 | D80: 18.899829 | E80: 902.914372 | F80: 696.045424 | G80: 295.483761 | H80: 175.2479091 | I80: 135.0964266 | J80: 57.35085508
A81: 830 | B81: 299.666362 | C81: 155.360889 | D81: 20.002637 | E81: 1159.455421 | F81: 839.784139 | G81: 304.3086 | H81: 222.3289898 | I81: 161.0310805 | J81: 58.35206978
A82: 840 | B82: 568.041436 | C82: 234.786898 | D82: 20.302079 | E82: 1586.38838 | F82: 1049.164407 | G82: 313.854583 | H82: 300.5732766 | I82: 198.7853589 | J82: 59.46608131
A83: 850 | B83: 1442.758836 | C83: 404.273275 | D83: 20.550772 | E83: 2321.204961 | F83: 1380.044688 | G83: 324.593302 | H83: 434.6249923 | I83: 258.4010986 | J83: 60.77721001
A84: 860 | B84: 4786.367601 | C84: 863.501485 | D84: 21.108683 | E84: 1598.093627 | F84: 1950.858643 | G84: 336.260158 | H84: 295.7494189 | I84: 361.0334841 | J84: 62.22961199
A85: 870 | B85: 2672.373227 | C85: 2633.626024 | D85: 21.973701 | E85: -2710.556192 | F85: 2693.773432 | G85: 348.704413 | H85: -495.8602488 | I85: 492.7900658 | J85: 63.79084024
A86: 880 | B86: 802.730404 | C86: 5073.795609 | D86: 23.102247 | E86: -1936.460644 | F86: -1410.426667 | G86: 361.926519 | H86: -350.2241859 | I86: -255.0867908 | J86: 65.45726652
A87: 890 | B87: 349.359641 | C87: 1512.665079 | D87: 24.48068 | E87: -1337.026375 | F87: -2454.398505 | G87: 375.992938 | H87: -239.0947827 | I87: -438.909724 | J87: 67.23722994
A88: 900 | B88: 191.064597 | C88: 552.451873 | D88: 26.128992 | E88: -996.404648 | F88: -1647.365989 | G88: 390.992763 | H88: -176.2030278 | I88: -291.3182669 | J88: 69.14270105
A89: 910 | B89: 120.127869 | C89: 273.509273 | D89: 28.094026 | E89: -782.533726 | F89: -1179.007944 | G89: 407.006673 | H89: -136.86166 | I89: -206.2032332 | J89: 71.18365261
A90: 920 | B90: 84.234213 | C90: 162.661677 | D90: 30.403463 | E90: -634.611816 | F90: -898.944102 | G90: 424.066104 | H90: -109.7843559 | I90: -155.5123885 | J90: 73.36110505
A91: 930 | B91: 68.151277 | C91: 111.119003 | D91: 32.918326 | E91: -524.820652 | F91: -712.79252 | G91: 442.215183 | H91: -89.81483979 | I91: -121.9832827 | J91: 75.67820676
A92: 940 | B92: 67.122472 | C92: 90.464638 | D92: 35.431321 | E92: -443.595355 | F92: -578.163145 | G92: 461.847739 | H92: -75.10680158 | I92: -97.89098132 | J92: 78.19718151
A93: 950 | B93: 71.441389 | C93: 94.380734 | D93: 38.162453 | E93: -390.186138 | F93: -483.585591 | G93: 483.499371 | H93: -65.36847641 | I93: -81.01582865 | J93: 81.00138408
A94: 960 | B94: 68.476335 | C94: 100.505489 | D94: 41.435597 | E94: -354.014255 | F94: -433.657815 | G94: 507.396982 | H94: -58.69074855 | I94: -71.89456757 | J94: 84.11951854
A95: 970 | B95: 59.992269 | C95: 86.568123 | D95: 45.400915 | E95: -321.945458 | F95: -398.549833 | G95: 533.749327 | H95: -52.82392891 | I95: -65.39296494 | J95: 87.57612759
A96: 980 | B96: 51.548367 | C96: 69.476789 | D96: 50.176004 | E96: -291.204281 | F96: -360.003953 | G96: 562.906314 | H96: -47.29244977 | I96: -58.46572311 | J96: 91.41767589
A97: 990 | B97: 44.891808 | C97: 57.0355 | D97: 55.927529 | E97: -262.504337 | F97: -322.418954 | G97: 595.351127 | H97: -42.20087153 | I97: -51.83289927 | J97: 95.7101765
A98: 1000 | B98: 39.977748 | C98: 48.626573 | D98: 62.89807 | E98: -236.230047 | F98: -288.370696 | G98: 631.703611 | H98: -37.59717969 | I98: -45.89562171 | J98: 100.5387523
A99: 1010 | B99: 36.414093 | C99: 42.93265 | D99: 71.432559 | E99: -212.308875 | F99: -258.102765 | G99: 672.749868 | H99: -33.45545239 | I99: -40.67161473 | J99: 106.0113534
A100: 1020 | B100: 33.808966 | C100: 39.063949 | D100: 82.021576 | E100: -190.490878 | F100: -231.229035 | G100: 719.491665 | H100: -29.72310279 | I100: -36.07965089 | J100: 112.265348
A101: 1030 | B101: 31.741359 | C101: 36.434962 | D101: 95.372021 | E101: -170.468727 | F101: -207.344686 | G101: 773.213698 | H101: -26.34071898 | I101: -32.03876864 | J101: 119.4764875
A102: 1040 | B102: 29.523525 | C102: 34.472459 | D102: 112.515438 | E102: -151.682538 | F102: -186.24043 | G102: 835.564717 | H102: -23.21252471 | I102: -28.50104331 | J102: 127.8694759
A103: 1050 | B103: 26.617989 | C103: 31.882441 | D103: 134.942243 | E103: -131.692171 | F103: -167.763933 | G103: 908.642884 | H103: -19.96139046 | I103: -25.42900877 | J103: 137.7285776
A104: 1060 | B104: 29.318668 | C104: 26.234489 | D104: 164.653523 | E104: -109.221306 | F104: -148.822563 | G104: 995.15386 | H104: -16.39916108 | I104: -22.34513825 | J104: 149.4185434
A105: 1070 | B105: 35.235278 | C105: 23.967715 | D105: 204.120972 | E105: -93.004609 | F105: -124.678667 | G105: 1099.238106 | H105: -13.83377874 | I105: -18.54507117 | J105: 163.5039049
A106: 1080 | B106: 39.64669 | C106: 27.416283 | D106: 257.894128 | E106: -78.727463 | F106: -103.815817 | G106: 1228.58191 | H106: -11.60172675 | I106: -15.2988893 | J106: 181.0508185
A107: 1090 | B107: 44.405586 | C107: 31.315809 | D107: 337.052765 | E107: -64.763175 | F107: -86.094237 | G107: 1394.555151 | H107: -9.456311405 | I107: -12.57093889 | J107: 203.6241704
A108: 1100 | B108: 50.511444 | C108: 35.400089 | D108: 462.600288 | E108: -51.387212 | F108: -69.540032 | G108: 1611.288119 | H108: -7.435026183 | I108: -10.06149076 | J108: 233.1313353
A109: 1110 | B109: 58.636047 | C109: 40.19027 | D109: 675.125057 | E109: -39.306401 | F109: -53.552425 | G109: 1898.186096 | H109: -5.635863076 | I109: -7.678498336 | J109: 272.1672974
A110: 1120 | B110: 69.319491 | C110: 46.173399 | D110: 1065.121231 | E110: -30.090867 | F110: -38.002104 | G110: 2275.62404 | H110: -4.275991272 | I110: -5.400198839 | J110: 323.3721559
A111: 1130 | B111: 81.867289 | C111: 53.88292 | D111: 1849.858032 | E111: -27.474962 | F111: -23.011433 | G111: 2711.949594 | H111: -3.869713286 | I111: -3.241047177 | J111: 381.964764
A112: 1140 | B112: 87.541726 | C112: 64.055565 | D112: 3464.641144 | E112: -37.2209 | F112: -9.093864 | G112: 2789.780776 | H112: -5.196394931 | I112: -1.269590708 | J112: 389.480176
A113: 1150 | B113: 66.189434 | C113: 77.818136 | D113: 5448.178333 | E113: -41.087675 | F113: 1.978272 | G113: 860.262168 | H113: -5.686353545 | I113: 0.2737841457 | J113: 119.0565012
A114: 1160 | B114: 52.950893 | C114: 94.127073 | D114: 4452.459263 | E114: -11.334824 | F114: 3.085005 | G114: -2102.443922 | H114: -1.555166611 | I114: 0.4232705131 | J114: -288.4606403
A115: 1170 | B115: 63.280287 | C115: 87.749643 | D115: 2440.730289 | E115: 15.016769 | F115: -3.658055 | G115: -2639.462395 | H115: 2.042729073 | I115: -0.4976047311 | J115: -359.0457156
A116: 1180 | B116: 77.910371 | C116: 83.637394 | D116: 1359.814537 | E116: 31.814835 | F116: 19.900018 | G116: -2265.260803 | H116: 4.291091741 | I116: 2.684056129 | J116: -305.5317408
A117: 1190 | B117: 92.274814 | C117: 96.16774 | D117: 836.05539 | E117: 45.458807 | F117: 39.678579 | G117: -1856.791348 | H117: 6.079826757 | I117: 5.306757969 | J117: -248.3340515
A118: 1200 | B118: 108.09518 | C118: 111.872753 | D118: 560.558522 | E118: 59.954098 | F118: 55.820432 | G118: -1537.180323 | H118: 7.951659213 | I118: 7.403414732 | J118: -203.8748724
A119: 1210 | B119: 129.845936 | C119: 131.450135 | D119: 401.427528 | E119: 76.890702 | F119: 72.622457 | G119: -1296.249232 | H119: 10.11366554 | I119: 9.552250422 | J119: -170.4995643
A120: 1220 | B120: 165.238197 | C120: 160.026863 | D120: 301.81626 | E120: 94.43378 | F120: 91.31247 | G120: -1112.019628 | H120: 12.31934662 | I120: 11.91215653 | J120: -145.0683776
A121: 1230 | B121: 226.026054 | C121: 207.213464 | D121: 235.475418 | E121: 100.727477 | F121: 108.29024 | G121: -967.537953 | H121: 13.03355762 | I121: 14.01213576 | J121: -125.19386
A122: 1240 | B122: 312.520154 | C122: 286.776537 | D122: 189.267357 | E122: 55.654396 | F122: 104.65236 | G122: -851.442522 | H122: 7.143284055 | I122: 13.43221 | J122: -109.2832953
A123: 1250 | B123: 342.278288 | C123: 386.439407 | D123: 155.979906 | E123: -77.872412 | F123: 23.786209 | G123: -756.195661 | H123: -9.91502344 | I123: 3.028554192 | J123: -96.28182191
A124: 1260 | B124: 246.005228 | C124: 380.92855 | D124: 131.363697 | E124: -173.349811 | F124: -148.259915 | G124: -676.63133 | H124: -21.89641215 | I124: -18.7272209 | J124: -85.46763557
A125: 1270 | B125: 148.443779 | C125: 246.286949 | D125: 112.810659 | E125: -167.141765 | F125: -229.434468 | G125: -609.092363 | H125: -20.94601425 | I125: -28.75246433 | J125: -76.3307562
A126: 1280 | B126: 95.840841 | C126: 141.402438 | D126: 98.694196 | E126: -128.166768 | F126: -204.820458 | G126: -550.927614 | H126: -15.93623021 | I126: -25.46733464 | J126: -68.50222895
A127: 1290 | B127: 71.518273 | C127: 88.108625 | D127: 88.023593 | E127: -87.173569 | F127: -157.326277 | G127: -500.194125 | H127: -10.7551197 | I127: -19.41027493 | J127: -61.71191279
A128: 1300 | B128: 63.440156 | C128: 62.438476 | D128: 80.265531 | E128: -48.56746 | F128: -112.212079 | G128: -455.509323 | H128: -5.945962563 | I128: -13.73777465 | J128: -55.76658491
A129: 1310 | B129: 69.056003 | C129: 50.745324 | D129: 75.220525 | E129: -11.407802 | F129: -71.191924 | G129: -416.068516 | H129: -1.385960365 | I129: -8.649272224 | J129: -50.54913052
A130: 1320 | B130: 94.511641 | C130: 47.973811 | D130: 72.712835 | E130: 21.390074 | F130: -31.28912 | G130: -381.839121 | H130: 2.579042432 | I130: -3.77258948 | J130: -46.03907846
A131: 1330 | B131: 145.504967 | C131: 54.6587 | D131: 71.673054 | E131: 23.616594 | F131: 11.734152 | G131: -353.454666 | H131: 2.826088477 | I131: 1.404171649 | J131: -42.29628365
A132: 1340 | B132: 161.14223 | C132: 79.8291 | D132: 69.529684 | E132: -31.707521 | F132: 62.783423 | G132: -330.448293 | H132: =1000*E132/(2*PI()*A132) -> -3.765976642 | I132: =1000*F132/(2*PI()*A132) -> 7.456934414 | J132: =1000*G132/(2*PI()*A132) -> -39.24811886
A133: 1350 | B133: 114.926492 | C133: 157.353424 | D133: 64.860286 | E133: -53.238436 | F133: 114.384505 | G133: -309.835182 | H133: -6.276415001 | I133: 13.48508103 | J133: -36.52725982
A134: 1360 | B134: 80.162215 | C134: 306.887912 | D134: 59.18373 | E134: -32.712602 | F134: 39.442687 | G134: -289.304865 | H134: -3.828214934 | I134: 4.615807798 | J134: -33.85610245
A135: 1370 | B135: 63.639889 | C135: 232.751074 | D135: 54.145713 | E135: -2.430168 | F135: -125.792317 | G135: -268.858696 | H135: -0.2823162407 | I135: -14.61348106 | J135: -31.23371567
A136: 1380 | B136: 57.24318 | C136: 128.243537 | D136: 50.241763 | E136: 30.017424 | F136: -113.223815 | G136: -249.125913 | H136: 3.461899571 | I136: -13.0580651 | J136: -28.73160906
A137: 1390 | B137: 57.11895 | C137: 86.899514 | D137: 47.418795 | E137: 65.058324 | F137: -69.519479 | G137: -230.500531 | H137: 7.449175434 | I137: -7.959977499 | J137: -26.39230136
A138: 1400 | B138: 62.482021 | C138: 71.459419 | D138: 45.514833 | E138: 105.214098 | F138: -28.288917 | G138: -213.190689 | H138: 11.96095984 | I138: -3.215943554 | J138: -24.2359657
A139: 1410 | B139: 74.911169 | C139: 67.821835 | D139: 44.295083 | E139: 154.640546 | F139: 11.184919 | G139: -197.383749 | H139: 17.45518248 | I139: 1.262507196 | J139: -22.27985769
A140: 1420 | B140: 99.699575 | C140: 72.284643 | D140: 43.305759 | E140: 220.476057 | F140: 52.694426 | G140: -183.195502 | H140: 24.711165 | I140: 5.906041107 | J140: -20.53272514
A141: 1430 | B141: 152.011801 | C141: 85.876564 | D141: 41.94387 | E141: 316.160797 | F141: 100.87283 | G141: -170.351131 | H141: 35.18779976 | I141: 11.2268598 | J141: -18.95959759
A142: 1440 | B142: 283.27782 | C142: 114.910823 | D142: 39.977932 | E142: 466.169477 | F142: 162.349721 | G142: -158.14322 | H142: 51.52303929 | I142: 17.94358375 | J142: -17.47866332
A143: 1450 | B143: 714.322196 | C143: 178.772992 | D143: 37.753895 | E143: 645.962919 | F143: 247.391786 | G143: -146.030111 | H143: 70.90220111 | I143: 27.15422457 | J143: -16.02856138
A144: 1460 | B144: 1516.279269 | C144: 343.000749 | D144: 35.704092 | E144: -197.741684 | F144: 361.342666 | G144: -133.953335 | H144: -21.55586744 | I144: 39.39004893 | J144: -14.60228453
A145: 1470 | B145: 583.075715 | C145: 801.712408 | D145: 34.02301 | E145: -831.502114 | F145: 331.283207 | G145: -122.071627 | H145: -90.02562696 | I145: 35.86759181 | J145: -13.21653255
A146: 1480 | B146: 204.854784 | C146: 907.224493 | D146: 32.724193 | E146: -601.025715 | F146: -476.754371 | G146: -110.525301 | H146: -64.63257667 | I146: -51.26879377 | J146: -11.88557297
A147: 1490 | B147: 96.860428 | C147: 340.686009 | D147: 31.747801 | E147: -443.140477 | F147: -590.95642 | G147: -99.3898 | H147: -47.33422644 | I147: -63.12324523 | J147: -10.61636105
A148: 1500 | B148: 55.388413 | C148: 140.943917 | D148: 31.004444 | E148: -347.57316 | F148: -445.970617 | G148: -88.684049 | H148: -36.87865767 | I148: -47.31895211 | J148: -9.409669848
A149: 1510 | B149: 35.16936 | C149: 72.413282 | D149: 30.400353 | E149: -284.459342 | F149: -344.0715 | G149: -78.360882 | H149: -29.98219231 | I149: -36.26535099 | J149: -8.259285904
A150: 1520 | B150: 24.049115 | C150: 43.120364 | D150: 29.893466 | E150: -239.036729 | F150: -277.217312 | G150: -68.308684 | H150: -25.02886645 | I150: -29.02664837 | J150: -7.152410997
A151: 1530 | B151: 17.518496 | C151: 28.316443 | D151: 29.535972 | E151: -204.592232 | F151: -230.545254 | G151: -58.414509 | H151: -21.28226473 | I151: -23.98197175 | J151: -6.076443043
A152: 1540 | B152: 13.408703 | C152: 19.961527 | D152: 29.446073 | E152: -177.347755 | F152: -195.815681 | G152: -48.628773 | H152: -18.32842328 | I152: -20.23703478 | J152: -5.025655584
A153: 1550 | B153: 10.676776 | C153: 14.920917 | D153: 29.774806 | E153: -155.005055 | F153: -168.694294 | G153: -38.981945 | H153: -15.91601336 | I153: -17.32163275 | J153: -4.002689831
A154: 1560 | B154: 8.798062 | C154: 11.69964 | D154: 30.70005 | E154: -136.104092 | F154: -146.699115 | G154: -29.632623 | H154: -13.88566604 | I154: -14.9665957 | J154: -3.0231913
A155: 1570 | B155: 7.523449 | C155: 9.53192 | D155: 32.312982 | E155: -119.679776 | F155: -128.286821 | G155: -21.000844 | H155: -12.13224709 | I155: -13.00476541 | J155: -2.128909638
A156: 1580 | B156: 6.726949 | C156: 7.972952 | D156: 34.178798 | E156: -105.09143 | F156: -112.414786 | G156: -13.719947 | H156: -10.58596238 | I156: -11.32365118 | J156: -1.382023661
A157: 1590 | B157: 6.362208 | C157: 6.881096 | D157: 35.123334 | E157: -91.797 | F157: -98.24992 | G157: -7.743559 | H157: -9.188645479 | I157: -9.834566306 | J157: -0.7751104981
A158: 1600 | B158: 6.705653 | C158: 6.381346 | D158: 34.61056 | E158: -79.217982 | F158: -85.320684 | G158: -1.805537 | H158: -7.879958386 | I158: -8.487005379 | J158: -0.1796000866
A159: 1610 | B159: 9.46869 | C159: 6.799526 | D159: 33.427494 | E159: -66.91765 | F159: -73.251415 | G159: 4.972555 | H159: -6.615077502 | I159: -7.241195519 | J159: 0.4915569615
A160: 1620 | B160: 17.524838 | C160: 10.194838 | D160: 32.33415 | E160: -64.601724 | F160: -63.012821 | G160: 12.461195 | H160: -6.346718338 | I160: -6.190618482 | J160: 1.22423505
A161: 1630 | B161: 7.219824 | C161: 8.588678 | D161: 31.56546 | E161: -60.75941 | F161: -60.706614 | G161: 20.306099 | H161: -5.932613767 | I161: -5.927458709 | J161: 1.982709221
A162: 1640 | B162: 4.264251 | C162: 4.497305 | D162: 31.111294 | E162: -49.508043 | F162: -50.394758 | G162: 28.286765 | H162: -4.80454254 | I162: -4.890594416 | J162: 2.745108826
A163: 1650 | B163: 3.456857 | C163: 3.549293 | D163: 30.910884 | E163: -39.866027 | F163: -40.645734 | G163: 36.304005 | H163: -3.845378945 | I163: -3.920587565 | J163: 3.50179506
A164: 1660 | B164: 3.103066 | C164: 3.175098 | D164: 30.909347 | E164: -31.131402 | F164: -31.808527 | G164: 44.3224 | H164: -2.984768984 | I164: -3.04968934 | J164: 4.249475331
A165: 1670 | B165: 2.903452 | C165: 2.96609 | D165: 31.065904 | E165: -22.919103 | F165: -23.501478 | G165: 52.337715 | H165: -2.184244631 | I165: -2.239746344 | J165: 4.987907816
A166: 1680 | B166: 2.777497 | C166: 2.831138 | D166: 31.353503 | E166: -15.039565 | F166: -15.533645 | G166: 60.36263 | H166: -1.424774471 | I166: -1.471581182 | J166: 5.718458894
A167: 1690 | B167: 2.696244 | C167: 2.740847 | D167: 31.758746 | E167: -7.379348 | F167: -7.792309 | G167: 68.41808 | H167: -0.6949465746 | I167: -0.7338369796 | J167: 6.443240017
A168: 1700 | B168: 2.647044 | C168: 2.682971 | D168: 32.279455 | E168: 0.141401 | F168: -0.1982 | G168: 76.526074 | H168: 0.01323804006 | I168: -0.01855559395 | J168: 7.164413501
A169: 1710 | B169: 2.623664 | C169: 2.651525 | D169: 32.920174 | E169: 7.586006 | F169: 7.311752 | G169: 84.706554 | H169: 0.7060528381 | I169: 0.6805271775 | J169: 7.883898703
A170: 1720 | B170: 2.622931 | C170: 2.643395 | D170: 33.689464 | E170: 15.009291 | F170: 14.792262 | G170: 92.977641 | H170: 1.388838869 | I170: 1.368756754 | J170: 8.603401838
A171: 1730 | B171: 2.643433 | C171: 2.657112 | D171: 34.599606 | E171: 22.462057 | F171: 22.293987 | G171: 101.355883 | H171: 2.066443586 | I171: 2.050981637 | J171: 9.324444966
A172: 1740 | B172: 2.68504 | C172: 2.692382 | D172: 35.666932 | E172: 29.994085 | F172: 29.866413 | G172: 109.854908 | H172: 2.743509708 | I172: 2.731831759 | J172: 10.04824806
A173: 1750 | B173: 2.748902 | C173: 2.749967 | D173: 36.911001 | E173: 37.656643 | F173: 37.560312 | G173: 118.482401 | H173: 3.424709071 | I173: 3.415948182 | J173: 10.77546274
A174: 1760 | B174: 2.837778 | C174: 2.831854 | D174: 38.35059 | E174: 45.504916 | F174: 45.430673 | G174: 127.236115 | H174: 4.114961543 | I174: 4.108247827 | J174: 11.50582764
A175: 1770 | B175: 2.95154 | C175: 2.943211 | D175: 39.994149 | E175: 53.606579 | F175: 53.542815 | G175: 136.102006 | H175: 4.820198887 | I175: 4.814465353 | J175: 12.23802656
A176: 1780 | B176: 3.147363 | C176: 3.111824 | D176: 41.825688 | E176: 62.075464 | F176: 61.968462 | G176: 145.061534 | H176: 5.550346596 | I176: 5.540779238 | J176: 12.97037089
A177: 1790 | B177: 3.70864 | C177: 3.346014 | D177: 43.796338 | E177: 70.82831 | F177: 70.798842 | G177: 154.113675 | H177: 6.297584161 | I177: 6.294964061 | J177: 13.70276714
A178: 1800 | B178: 3.779168 | C178: 3.823893 | D178: 45.835067 | E178: 79.528572 | F178: 80.229017 | G178: 163.304795 | H178: 7.031869639 | I178: 7.093802575 | J178: 14.43931409
A179: 1810 | B179: 3.86715 | C179: 5.518976 | D179: 47.885714 | E179: 89.30788 | F179: 89.682952 | G179: 172.751307 | H179: 7.852922961 | I179: 7.885903382 | J179: 15.19017925
A180: 1820 | B180: 4.148257 | C180: 4.936527 | D180: 49.966538 | E180: 99.772778 | F180: 98.232451 | G180: 182.623163 | H180: 8.724907036 | I180: 8.590208873 | J180: 15.96998852
A181: 1830 | B181: 4.547601 | C181: 4.691863 | D181: 52.191997 | E181: 111.063297 | F181: 109.519818 | G181: 193.070436 | H181: 9.659165417 | I181: 9.524929181 | J181: 16.79131926
A182: 1840 | B182: 5.080619 | C182: 5.015558 | D182: 54.717665 | E182: 123.393516 | F182: 121.662319 | G182: 204.171217 | H182: 10.67320001 | I182: 10.52345623 | J182: 17.66024914
A183: 1850 | B183: 5.802731 | C183: 5.57794 | D183: 57.682739 | E183: 137.044725 | F183: 134.893471 | G183: 215.951886 | H183: 11.78991644 | I183: 11.6048447 | J183: 18.57827574
A184: 1860 | B184: 6.830106 | C184: 6.380425 | D184: 61.201326 | E184: 152.407331 | F184: 149.561161 | G184: 228.428428 | H184: 13.04106457 | I184: 12.79752584 | J184: 19.54597498
A185: 1870 | B185: 8.429313 | C185: 7.536017 | D185: 65.379383 | E185: 170.05285 | F185: 166.108454 | G185: 241.627165 | H185: 14.47312923 | I185: 14.13742329 | J185: 20.56479021
A186: 1880 | B186: 11.344519 | C186: 9.333277 | D186: 70.329815 | E186: 190.826633 | F186: 185.155655 | G186: 255.587765 | H186: 16.15478825 | I186: 15.67470092 | J186: 21.63726393
A187: 1890 | B187: 18.131022 | C187: 12.589601 | D187: 76.178784 | E187: 215.364132 | F187: 207.557224 | G187: 270.363853 | H187: 18.13559057 | I187: 17.47817893 | J187: 22.76706013
A188: 1900 | B188: 33.371878 | C188: 19.961125 | D188: 83.07081 | E188: 235.958512 | F188: 233.497444 | G188: 286.033613 | H188: 19.76524397 | I188: 19.55909074 | J188: 23.95982284
A189: 1910 | B189: 31.775911 | C189: 32.284838 | D189: 91.191766 | E189: 249.33501 | F189: 254.379555 | G189: 302.72086 | H189: 20.77638708 | I189: 21.19673487 | J189: 25.22488023
A190: 1920 | B190: 26.199889 | C190: 28.863298 | D190: 100.823983 | E190: 287.668977 | F190: 278.572311 | G190: 320.60197 | H190: 23.84580191 | I190: 23.09175016 | J190: 26.57572307
A191: 1930 | B191: 29.202403 | C191: 27.963791 | D191: 112.411028 | E191: 340.772208 | F191: 324.266519 | G191: 339.868747 | H191: 28.1013375 | I191: 26.74021729 | J191: 28.02683476
A192: 1940 | B192: 39.171772 | C192: 34.631805 | D192: 126.595098 | E192: 412.541959 | F192: 385.944038 | G192: 360.662035 | H192: 33.84437732 | I192: 31.66232031 | J192: 29.58821941
A193: 1950 | B193: 60.57102 | C193: 49.885598 | D193: 144.240175 | E193: 517.567834 | F193: 471.764891 | G193: 383.011868 | H193: 42.24280983 | I193: 38.50446891 | J193: 31.26063182
A194: 1960 | B194: 110.94035 | C194: 82.59649 | D194: 166.48475 | E194: 689.312468 | F194: 601.935859 | G194: 406.76868 | H194: 55.97320746 | I194: 48.8780956 | J194: 33.03022761
A195: 1970 | B195: 266.877725 | C195: 165.373604 | D195: 194.833512 | E195: 1018.935186 | F195: 824.674632 | G195: 431.461093 | H195: 82.31907185 | I195: 66.6248955 | J195: 34.85744452
A196: 1980 | B196: 1102.025422 | C196: 460.948724 | D196: 231.243379 | E196: 1722.818485 | F196: 1271.331032 | G196: 455.999606 | H196: =1000*E196/(2*PI()*A196) -> 138.4823626 | I196: =1000*F196/(2*PI()*A196) -> 102.1912212 | J196: =1000*G196/(2*PI()*A196) -> 36.65383401
A197: 1990 | B197: 2930.751033 | C197: 2255.443992 | D197: 278.085013 | E197: -1086.981804 | F197: 1714.840978 | G197: 478.137097 | H197: -86.93393324 | I197: 137.1484514 | J197: 38.24014194
A198: 2000 | B198: 640.474779 | C198: 1753.057297 | D198: 337.706313 | E198: -1181.777726 | F198: -1527.968517 | G198: 493.621703 | H198: -94.04288336 | I198: -121.5918712 | J198: 39.28116702
A199: 2010 | B199: 257.600092 | C199: 494.596777 | D199: 411.034456 | E199: -732.169746 | F199: -1020.954405 | G199: 495.205064 | H199: -57.9743454 | I199: -80.84076628 | J199: 39.21111133
A200: 2020 | B200: 145.290591 | C200: 234.81558 | D200: 494.459653 | E200: -515.418389 | F200: -678.113207 | G200: 472.527462 | H200: -40.60959622 | I200: -53.42825192 | J200: 37.23023828
... 48 more rows

Sheet Operation Scenario 2
A1: Freq.Sweep | B1: Bus 23 | C1: Bus 23 | D1: Bus 23 | E1: Bus 23 | F1: Bus 23 | G1: Bus 23 | H1: Bus 23 | I1: Bus 23 | J1: Bus 23
A2: Frequency in Hz | B2: R1 in Ohm | C2: R2 in Ohm | D2: R0 in Ohm | E2: X1 in Ohm | F2: X2 in Ohm | G2: X0 in Ohm | H2: L1 in mH | I2: L2 in mH | J2: L0 in mH
A3: 50 | B3: 15.220392 | C3: 14.196884 | D3: 1.418979 | E3: 52.028676 | F3: 51.181844 | G3: 21.491807 | H3: =1000*E3/(2*PI()*A3) -> 165.6124194 | I3: =1000*F3/(2*PI()*A3) -> 162.9168694 | J3: =1000*G3/(2*PI()*A3) -> 68.4105464
A4: 60 | B4: 18.119218 | C4: 16.868062 | D4: 1.469292 | E4: 60.875837 | F4: 60.056768 | G4: 25.732525 | H4: =1000*E4/(2*PI()*A4) -> 161.4781729 | I4: =1000*F4/(2*PI()*A4) -> 159.3055249 | J4: =1000*G4/(2*PI()*A4) -> 68.25764253
A5: 70 | B5: 21.03519 | C5: 19.572724 | D5: 1.516771 | E5: 69.406427 | F5: 68.641925 | G5: 29.986818 | H5: 157.8053706 | I5: 156.0671667 | J5: 68.17929018
A6: 80 | B6: 23.959824 | C6: 22.29427 | D6: 1.563122 | E6: 77.730741 | F6: 77.038592 | G6: 34.255245 | H6: 154.6403958 | I6: 153.2634091 | J6: 68.14864461
A7: 90 | B7: 26.922204 | C7: 25.052349 | D7: 1.609218 | E7: 85.935231 | F7: 85.331158 | G7: 38.539069 | H7: 151.9668533 | I7: 150.8986177 | J7: 68.15203704
A8: 100 | B8: 29.975873 | C8: 27.891776 | D8: 1.65555 | E8: 94.078946 | F8: 93.582251 | G8: 42.839984 | H8: 149.731293 | I8: 148.9407783 | J8: 68.18195216
A9: 110 | B9: 33.19031 | C9: 30.875037 | D9: 1.702416 | E9: 102.192504 | F9: 101.830962 | G9: 47.159967 | H9: 147.8585651 | I9: 147.3354633 | J9: 68.23401695
A10: 120 | B10: 36.645299 | C10: 34.077612 | D10: 1.750014 | E10: 110.276392 | F10: 110.091091 | G10: 51.501222 | H10: 146.2586074 | I10: 146.0128444 | J10: 68.30561714
A11: 130 | B11: 40.425838 | C11: 37.584501 | D11: 1.798491 | E11: 118.296971 | F11: 118.347564 | G11: 55.866144 | H11: 144.8272899 | I11: 144.8892293 | J11: 68.39517669
A12: 140 | B12: 44.614749 | C12: 41.485728 | D12: 1.847967 | E12: 126.179735 | F12: 126.550032 | G12: 60.257322 | H12: 143.4437753 | I12: 143.8647367 | J12: 68.50179038
A13: 150 | B13: 49.279492 | C13: 45.867905 | D13: 1.89856 | E13: 133.800788 | F13: 134.603542 | G13: 64.677549 | H13: 141.9670453 | I13: 142.8187938 | J13: 68.62501087
A14: 160 | B14: 54.449161 | C14: 50.797896 | D14: 1.950424 | E14: 140.980026 | F14: 142.357841 | G14: 69.129863 | H14: 140.2354251 | I14: 141.605963 | J14: 68.76474632
A15: 170 | B15: 60.078662 | C15: 56.294088 | D15: 2.003842 | E15: 147.483908 | F15: 149.600235 | G15: 73.617596 | H15: 138.0752529 | I15: 140.0565699 | J15: 68.92120178
A16: 180 | B16: 66.002555 | C16: 62.282775 | D16: 2.059598 | E16: 153.051298 | F16: 156.062527 | G16: 78.144362 | H16: 135.327059 | I16: 137.98957 | J16: 69.09478604
A17: 190 | B17: 71.894418 | C17: 68.545551 | D17: 2.119789 | E17: 157.457912 | F17: 161.45882 | G17: 82.712584 | H17: 131.8958159 | I17: 135.2472069 | J17: 69.28482421
A18: 200 | B18: 77.266785 | C18: 74.681744 | D18: 2.181356 | E18: 160.62261 | F18: 165.570191 | G18: 87.320577 | H18: 127.8194118 | I18: 131.7565716 | J18: 69.48750732
A19: 210 | B19: 81.553689 | C19: 80.130806 | D19: 2.237984 | E19: 162.722515 | F19: 168.370246 | G19: 91.980197 | H19: 123.3242505 | I19: 127.6045568 | J19: 69.71001438
A20: 220 | B20: 84.281686 | C20: 84.295268 | D20: 2.296927 | E20: 164.240807 | F20: 170.137425 | G20: 96.698708 | H20: 118.8169831 | I20: 123.0827827 | J20: 69.95489713
A21: 230 | B21: 85.256169 | C21: 86.743612 | D21: 2.359216 | E21: 165.87789 | F21: 171.462033 | G21: 101.47857 | H21: 114.7838528 | I21: 118.647957 | J21: 70.22093928
A22: 240 | B22: 84.643758 | C22: 87.383376 | D22: 2.424533 | E22: 168.347479 | F22: 173.097905 | G22: 106.32502 | H22: 111.6388893 | I22: 114.7891134 | J22: 70.50896878
A23: 250 | B23: 82.896718 | C23: 86.484229 | D23: 2.492904 | E23: 172.17705 | F23: 175.729728 | G23: 111.244574 | H23: 109.6113144 | I23: 111.8730194 | J23: 70.82049538
A24: 260 | B24: 80.586093 | C24: 84.542733 | D24: 2.564582 | E24: 177.620921 | F24: 179.801245 | G24: 116.244686 | H24: 108.7278753 | I24: 110.0625266 | J24: 71.15737071
A25: 270 | B25: 78.254146 | C25: 82.097059 | D25: 2.639977 | E25: 184.691079 | F25: 185.487194 | G25: 121.333834 | H25: 108.8685117 | I25: 109.3377919 | J25: 71.52177572
A26: 280 | B26: 76.338723 | C26: 79.602885 | D26: 2.719634 | E26: 193.2368 | F26: 192.775993 | G26: 126.521718 | H26: 109.8378282 | I26: 109.5759007 | J26: 71.91627439
A27: 290 | B27: 75.14933 | C27: 77.407091 | D27: 2.804262 | E27: 203.01569 | F27: 201.578475 | G27: 131.81952 | H27: 111.417071 | I27: 110.6283128 | J27: 72.34389036
A28: 300 | B28: 74.858797 | C28: 75.792432 | D28: 2.894758 | E28: 213.753404 | F28: 211.793646 | G28: 137.240251 | H28: 113.3997028 | I28: 112.3600189 | J28: 72.80821446
A29: 310 | B29: 75.514764 | C29: 75.030957 | D29: 2.992278 | E29: 225.212652 | F29: 223.300159 | G29: 142.799188 | H29: 115.6248607 | I29: 114.642981 | J29: 73.31353755
A30: 320 | B30: 77.098697 | C30: 75.371928 | D30: 3.09831 | E30: 237.251694 | F30: 235.907888 | G30: 148.514463 | H30: 117.9993121 | I30: 117.3309578 | J30: 73.86503408
A31: 330 | B31: 79.61186 | C31: 76.96748 | D31: 3.214802 | E31: 249.824663 | F31: 249.374071 | G31: 154.407833 | H31: 120.4873637 | I31: 120.2700487 | J31: 74.46899962
A32: 340 | B32: 83.130989 | C32: 79.862381 | D32: 3.344336 | E32: 262.925996 | F32: 263.508732 | G32: 160.505734 | H32: 123.076388 | I32: 123.3491684 | J32: 75.1331793
A33: 350 | B33: 87.815625 | C33: 84.097891 | D33: 3.490393 | E33: 276.522041 | F33: 278.236904 | G33: 166.840739 | H33: 125.7424277 | I33: 126.5222246 | J33: 75.86722377
A34: 360 | B34: 93.883833 | C34: 89.819846 | D34: 3.657768 | E34: 290.487488 | F34: 293.548328 | G34: 173.453616 | H34: 128.4236656 | I34: 129.776854 | J34: 76.6833344
A35: 370 | B35: 101.550353 | C35: 97.321719 | D35: 3.85323 | E35: 304.533588 | F35: 309.395921 | G35: 180.396332 | H35: 130.9946645 | I35: 133.0861897 | J35: 77.59721068
A36: 380 | B36: 110.861947 | C36: 107.040754 | D36: 4.086657 | E36: 318.133958 | F36: 325.580966 | G36: 187.736595 | H36: 133.2436631 | I36: 136.3626845 | J36: 78.62949235
A37: 390 | B37: 121.299718 | C37: 119.504228 | D37: 4.373137 | E37: 330.588046 | F37: 341.597781 | G37: 195.565049 | H37: 134.9095427 | I37: 139.402501 | J37: 79.80806217
A38: 400 | B38: 131.171381 | C38: 135.126495 | D38: 4.737348 | E38: 341.764633 | F38: 356.409104 | G38: 204.007417 | H38: 135.9838268 | I38: 141.8106767 | J38: 81.17197211
A39: 410 | B39: 138.080296 | C39: 153.60663 | D39: 5.22445 | E39: 354.325176 | F39: 368.269229 | G39: 213.246908 | H39: 137.5429347 | I39: 142.9557761 | J39: 82.77877929
A40: 420 | B40: 143.547089 | C40: 172.665344 | D40: 5.934989 | E40: 375.140867 | F40: 375.276218 | G40: 223.570127 | H40: 142.1560079 | I40: 142.2072979 | J40: 84.71974009
A41: 430 | B41: 158.187514 | C41: 187.139689 | D41: 7.181607 | E41: 408.859137 | F41: 378.267944 | G41: 235.460059 | H41: 151.3301225 | I41: 140.0074723 | J41: 87.15030765
A42: 440 | B42: 196.735929 | C42: 193.002505 | D42: 10.390427 | E42: 449.112647 | F42: 385.517019 | G42: 249.331939 | H42: 162.4511313 | I42: 139.4475891 | J42: 90.18729673
A43: 450 | B43: 270.572683 | C43: 197.573184 | D43: 15.348971 | E43: 476.605691 | F43: 410.059481 | G43: 260.476777 | H43: 168.5647814 | I43: 145.0288741 | J43: 92.12481471
A44: 460 | B44: 375.189857 | C44: 222.417843 | D44: 15.092864 | E44: 453.339363 | F44: 456.443303 | G44: 276.728388 | H44: 156.8504359 | I44: 157.924365 | J44: 95.7449801
A45: 470 | B45: 450.915093 | C45: 298.326792 | D45: 18.506201 | E45: 345.362003 | F45: 509.623809 | G45: 300.912955 | H45: 116.949085 | I45: 172.572656 | J45: 101.8974133
A46: 480 | B46: 420.664107 | C46: 453.974904 | D46: 27.168647 | E46: 216.887076 | F46: 505.901773 | G46: 334.350249 | H46: 71.91385466 | I46: 167.7432664 | J46: 110.8614476
A47: 490 | B47: 330.487966 | C47: 591.815949 | D47: 47.819278 | E47: 160.920448 | F47: 321.895529 | G47: 385.179986 | H47: 52.26792805 | I47: 104.5536012 | J47: 125.108773
A48: 500 | B48: 254.56105 | C48: 493.850223 | D48: 109.484078 | E48: 164.159266 | F48: 105.803716 | G48: 471.554615 | H48: 52.25351728 | I48: 33.6783688 | J48: 150.1004958
A49: 510 | B49: 199.610861 | C49: 328.689917 | D49: 371.943085 | E49: 183.451857 | F49: 64.13959 | G49: 572.643381 | H49: 57.24954875 | I49: 20.01594666 | J49: 178.70397
A50: 520 | B50: 149.494115 | C50: 216.012762 | D50: 590.529065 | E50: 228.017855 | F50: 101.493652 | G50: -2.200153 | H50: 69.78878603 | I50: 31.06387771 | J50: -0.6733946644
A51: 530 | B51: 134.075013 | C51: 156.813024 | D51: 186.294989 | E51: 283.548391 | F51: 168.869693 | G51: -57.514057 | H51: 85.14741138 | I51: 50.71027619 | J51: -17.27103107
A52: 540 | B52: 134.18809 | C52: 132.920259 | D52: 80.688497 | E52: 331.796224 | F52: 228.317229 | G52: 36.615543 | H52: 97.79075768 | I52: 67.29225109 | J52: 10.79174937
A53: 550 | B53: 143.505696 | C53: 123.748788 | D53: 46.904273 | E53: 377.766362 | F53: 280.789429 | G53: 94.358054 | H53: 109.3152434 | I53: 81.25277381 | J53: 27.30463766
A54: 560 | B54: 163.081539 | C54: 124.209536 | D54: 32.410281 | E54: 423.76891 | F54: 330.002136 | G54: 131.911094 | H54: 120.4373513 | I54: 93.78834138 | J54: 37.48982618
A55: 570 | B55: 196.940186 | C55: 133.2198 | D55: 25.016386 | E55: 469.85534 | F55: 378.243903 | G55: 159.066062 | H55: 131.1926314 | I55: 105.6129594 | J55: 44.41429833
A56: 580 | B56: 252.603659 | C56: 152.0539 | D56: 20.88116 | E56: 512.087807 | F56: 427.017514 | G56: 180.470546 | H56: 140.5194927 | I56: 117.1757727 | J56: 49.52203358
A57: 590 | B57: 340.237842 | C57: 184.600313 | D57: 18.553076 | E57: 535.659142 | F57: 476.652074 | G57: 198.549803 | H57: 144.4962716 | I57: 128.5788707 | J57: 53.55963152
A58: 600 | B58: 457.550803 | C58: 238.478511 | D58: 17.507356 | E58: 502.131189 | F58: 524.238613 | G58: 214.748599 | H58: 133.1944347 | I58: 139.058611 | J58: 56.96383509
A59: 610 | B59: 539.662436 | C59: 325.304628 | D59: 17.827853 | E59: 369.250283 | F59: 557.008516 | G59: 230.072435 | H59: 96.34099636 | I59: 145.3289486 | J59: 60.02813984
A60: 620 | B60: 486.169767 | C60: 448.948367 | D60: 20.562022 | E60: 210.363163 | F60: 537.594418 | G60: 245.174312 | H60: 54.00054393 | I60: 138.0013048 | J60: 62.93661883
A61: 630 | B61: 353.019813 | C61: 552.944428 | D61: 28.927597 | E61: 152.94081 | F61: 411.699298 | G61: 258.535612 | H61: 38.63696177 | I61: 104.0063148 | J61: 65.3130486
A62: 640 | B62: 244.166071 | C62: 516.993629 | D62: 41.354137 | E62: 180.833765 | F62: 235.330617 | G62: 258.425111 | H62: 44.96966809 | I62: 58.52192337 | J62: 64.26505287
A63: 650 | B63: 177.855284 | C63: 378.09933 | D63: 34.198348 | E63: 238.962582 | F63: 160.638354 | G63: 252.440109 | H63: 58.51088637 | I63: 39.33290475 | J63: 61.81090951
A64: 660 | B64: 141.345323 | C64: 258.961794 | D64: 23.916936 | E64: 303.181348 | F64: 185.102221 | G64: 260.985591 | H64: 73.11031847 | I64: 44.6362628 | J64: 62.93507104
A65: 670 | B65: 124.141165 | C65: 186.503701 | D65: 19.025465 | E65: 367.388352 | F65: 245.913429 | G65: 272.955298 | H65: 87.27115262 | I65: 58.41542955 | J65: 64.83908197
A66: 680 | B66: 121.979698 | C66: 147.435856 | D66: 16.735155 | E66: 430.655931 | F66: 314.407639 | G66: 284.735173 | H66: 100.7956179 | I66: 73.58754396 | J66: 66.64266214
A67: 690 | B67: 135.342101 | C67: 130.654505 | D67: 15.584256 | E67: 490.047632 | F67: 383.178646 | G67: 296.061253 | H67: 113.0340623 | I67: 88.38373275 | J67: 68.28929257
A68: 700 | B68: 160.738374 | C68: 132.800543 | D68: 14.994099 | E68: 534.016833 | F68: 449.446527 | G68: 307.093302 | H68: =1000*E68/(2*PI()*A68) -> 121.4163124 | I68: =1000*F68/(2*PI()*A68) -> 102.188052 | J68: =1000*G68/(2*PI()*A68) -> 69.82202429
A69: 710 | B69: 172.853049 | C69: 152.658495 | D69: 14.728216 | E69: 559.765998 | F69: 503.13954 | G69: 317.992853 | H69: 125.478205 | I69: 112.7847111 | J69: 71.28187947
A70: 720 | B70: 162.519646 | C70: 166.605218 | D70: 14.678576 | E70: 599.824073 | F70: 532.426474 | G70: 328.87766 | H70: 132.5902308 | I70: 117.6920905 | J70: 72.69792397
A71: 730 | B71: 153.07516 | C71: 150.474395 | D71: 14.790948 | E71: 669.512395 | F71: 573.325212 | G71: 339.839443 | H71: 145.967407 | I71: 124.9966322 | J71: 74.09195508
A72: 740 | B72: 174.511533 | C72: 156.125424 | D72: 15.040656 | E72: 760.752435 | F72: 651.812713 | G72: 350.955516 | H72: 163.6182574 | I72: 140.1881287 | J72: 75.48149348
A73: 750 | B73: 197.330124 | C73: 169.601638 | D73: 15.42295 | E73: 844.292888 | F73: 710.818132 | G73: 362.29553 | H73: 179.1645154 | I73: 150.8402925 | J73: 76.88149928
A74: 760 | B74: 229.542794 | C74: 178.92344 | D74: 15.951162 | E74: 960.801307 | F74: 791.9226 | G74: 373.926232 | H74: 201.2056281 | I74: 165.8399952 | J74: 78.30553707
A75: 770 | B75: 289.877477 | C75: 200.822667 | D75: 16.661666 | E75: 1113.6864 | F75: 893.990662 | G75: 385.914101 | H75: 230.1931112 | I75: 184.7831597 | J75: 79.76641141
A76: 780 | B76: 402.483867 | C76: 240.534195 | D76: 17.628182 | E76: 1320.970199 | F76: 1020.973498 | G76: 398.323112 | H76: 269.5370985 | I76: 208.324332 | J76: 81.27575926
A77: 790 | B77: 634.374562 | C77: 309.274626 | D77: 18.991896 | E77: 1615.274952 | F77: 1184.264711 | G77: 411.196636 | H77: 325.4164469 | I77: 238.5842819 | J77: 82.84047747
A78: 800 | B78: 1201.620726 | C78: 434.157462 | D78: 21.012124 | E78: 2015.538478 | F78: 1404.222927 | G78: 424.484574 | H78: 400.9786397 | I78: 279.361275 | J78: 84.44852277
A79: 810 | B79: 2757.698382 | C79: 687.563361 | D79: 24.078042 | E79: 2014.565498 | F79: 1712.993879 | G79: 437.79538 | H79: 395.8371076 | I79: 336.5820288 | J79: 86.02135653
A80: 820 | B80: 3518.589265 | C80: 1294.388745 | D80: 28.152138 | E80: -757.413697 | F80: 2119.997617 | G80: 449.837207 | H80: -147.0074803 | I80: 411.4732928 | J80: 87.30953059
A81: 830 | B81: 1409.386865 | C81: 2882.94824 | D81: 30.631553 | E81: -1474.870585 | F81: 2088.456997 | G81: 459.615259 | H81: -282.8107759 | I81: 400.4677765 | J81: 88.13257878
A82: 840 | B82: 582.56357 | C82: 3721.111946 | D82: 29.687288 | E82: -938.94006 | F82: -657.676405 | G82: 470.708201 | H82: -177.9011331 | I82: -124.6100605 | J82: 89.18516303
A83: 850 | B83: 303.629479 | C83: 1607.990411 | D83: 28.185283 | E83: -528.26566 | F83: -1551.439768 | G83: 484.936399 | H83: -98.9130483 | I83: -290.4933035 | J83: 90.8000294
A84: 860 | B84: 189.597054 | C84: 685.661192 | D84: 27.547102 | E84: -245.168543 | F84: -1034.955038 | G84: 501.188325 | H84: -45.37184362 | I84: -191.5328025 | J84: 92.7518597
A85: 870 | B85: 136.69219 | C85: 362.390514 | D85: 27.789296 | E85: -34.237799 | F85: -603.531974 | G85: 518.712934 | H85: -6.263350519 | I85: -110.4081574 | J85: 94.8916408
A86: 880 | B86: 111.370367 | C86: 227.790222 | D86: 28.742411 | E86: 137.122408 | F86: -299.221352 | G86: 537.301259 | H86: 24.79966937 | I86: -54.11654233 | J86: 97.17517193
A87: 890 | B87: 100.856277 | C87: 164.505816 | D87: 30.345778 | E87: 287.547846 | F87: -69.881548 | G87: 556.971079 | H87: 51.42096749 | I87: -12.49662224 | J87: 99.60078695
A88: 900 | B88: 99.764867 | C88: 133.939729 | D88: 32.687951 | E88: 428.939067 | F88: 118.111004 | G88: 577.782493 | H88: 75.85308089 | I88: 20.88661124 | J88: 102.1743775
A89: 910 | B89: 105.981377 | C89: 121.360768 | D89: 36.002856 | E89: 570.497367 | F89: 284.567747 | G89: 599.652614 | H89: 99.77744613 | I89: 49.76963031 | J89: 104.8765689
A90: 920 | B90: 119.815351 | C90: 120.557083 | D90: 40.411726 | E90: 721.14617 | F90: 442.32595 | G90: 622.036874 | H90: 124.7543235 | I90: 76.51995804 | J90: 107.6089601
A91: 930 | B91: 144.724466 | C91: 128.939008 | D91: 44.894826 | E91: 891.036586 | F91: 601.51016 | G91: 644.191303 | H91: 152.4869647 | I91: 102.9390487 | J91: 110.2432582
A92: 940 | B92: 189.615935 | C92: 146.396709 | D92: 47.667095 | E92: 1092.883477 | F92: 772.398801 | G92: 667.443387 | H92: 185.0402208 | I92: 130.7777524 | J92: 113.0073556
A93: 950 | B93: 275.360159 | C93: 176.042315 | D93: 49.569317 | E93: 1342.490329 | F93: 967.667672 | G93: 694.166156 | H93: 224.9094441 | I93: 162.114835 | J93: 116.2947106
A94: 960 | B94: 450.225988 | C94: 227.017549 | D94: 52.290166 | E94: 1650.435621 | F94: 1205.093098 | G94: 724.574653 | H94: 273.6197785 | I94: 199.7880452 | J94: 120.1246226
A95: 970 | B95: 802.56726 | C95: 323.210732 | D95: 56.362258 | E95: 1974.201518 | F95: 1511.087089 | G95: 758.320507 | H95: 323.9215776 | I95: 247.9350306 | J95: 124.4231517
A96: 980 | B96: 1353.109062 | C96: 528.988406 | D96: 61.919582 | E96: 2135.194935 | F96: 1917.140948 | G96: 795.52054 | H96: 346.7620698 | I96: 311.3494474 | J96: 129.1949248
A97: 990 | B97: 1858.023038 | C97: 994.098132 | D97: 69.196992 | E97: 2054.697958 | F97: 2397.217795 | G97: 836.654037 | H97: 330.3185218 | I97: 385.3828906 | J97: 134.5026522
A98: 1000 | B98: 2247.047671 | C98: 1828.916719 | D98: 78.677753 | E98: 2002.745976 | F98: 2692.896495 | G98: 882.440822 | H98: 318.7469218 | I98: 428.5877884 | J98: 140.4448188
A99: 1010 | B99: 2801.15487 | C99: 2762.273677 | D99: 91.230525 | E99: 2063.814258 | F99: 2621.770878 | G99: 933.803305 | H99: 325.2140998 | I99: 413.1364306 | J99: 147.1479325
A100: 1020 | B100: 3795.013574 | C100: 3808.176983 | D100: 108.379854 | E100: 1981.491098 | F100: 2366.608688 | G100: 991.811395 | H100: 309.1804931 | I100: 369.2720305 | J100: 154.756555
A101: 1030 | B101: 5221.788014 | C101: 5199.523114 | D101: 132.833388 | E101: 1077.124531 | F101: 1478.318084 | G101: 1057.398804 | H101: 166.4365956 | I101: 228.4287675 | J101: 163.3885888
A102: 1040 | B102: 5907.302397 | C102: 5948.769047 | D102: 169.298257 | E102: -1293.650216 | F102: -731.017343 | G102: 1130.21262 | H102: -197.9719486 | I102: -111.870215 | J102: 172.960505
A103: 1050 | B103: 4279.798391 | C103: 4874.086147 | D103: 224.388558 | E103: -3648.123752 | F103: -2819.363125 | G103: 1204.953399 | H103: -552.968503 | I103: -427.3481693 | J103: 182.6421806
A104: 1060 | B104: 2040.065665 | C104: 3149.99799 | D104: 298.654297 | E104: -3529.37393 | F104: -3797.861186 | G104: 1265.29728 | H104: -529.9219877 | I104: -570.2343216 | J104: 189.979544
A105: 1070 | B105: 1215.11087 | C105: 1454.132073 | D105: 364.762071 | E105: -2851.388926 | F105: -3407.570654 | G105: 1297.336809 | H105: -424.1239647 | I105: -506.8520687 | J105: 192.9696879
A106: 1080 | B106: 817.245254 | C106: 826.52118 | D106: 390.878498 | E106: -2393.31672 | F106: -2706.324794 | G106: 1335.93218 | H106: -352.6927652 | I106: -398.8194153 | J106: 196.8705649
A107: 1090 | B107: 583.833623 | C107: 552.708938 | D107: 403.460114 | E107: -2051.979677 | F107: -2245.31657 | G107: 1425.312085 | H107: -299.617164 | I107: -327.8470008 | J107: 208.1151044
A108: 1100 | B108: 439.228929 | C108: 398.577649 | D108: 440.424326 | E108: -1787.372252 | F108: -1920.904644 | G108: 1565.504856 | H108: -258.6082991 | I108: -277.9286085 | J108: 226.5071239
A109: 1110 | B109: 346.771169 | C109: 302.30835 | D109: 520.272621 | E109: -1577.62433 | F109: -1677.794755 | G109: 1747.289354 | H109: -226.2042437 | I109: -240.5669628 | J109: 250.5312952
A110: 1120 | B110: 287.605869 | C110: 238.549539 | D110: 660.124936 | E110: -1408.018998 | F110: -1488.102374 | G110: 1968.052262 | H110: -200.0831996 | I110: -211.4632577 | J110: 279.665398
A111: 1130 | B111: 253.586873 | C111: 194.661015 | D111: 886.959848 | E111: -1269.188394 | F111: -1335.627312 | G111: 2225.33518 | H111: -178.7589439 | I111: -188.1165388 | J111: 313.4275168
A112: 1140 | B112: 246.057237 | C112: 163.869372 | D112: 1241.770821 | E112: -1162.306463 | F112: -1210.065404 | G112: 2511.423795 | H112: -162.2691395 | I112: -168.9367461 | J112: 350.6188694
A113: 1150 | B113: 239.535292 | C113: 142.941936 | D113: 1801.489324 | E113: -1126.13535 | F113: -1104.514449 | G113: 2806.710274 | H113: -155.8521805 | I113: -152.8599428 | J113: 388.4363599
A114: 1160 | B114: 153.679816 | C114: 132.699919 | D114: 2720.561983 | E114: -1066.587799 | F114: -1015.984368 | G114: 2999.904174 | H114: -146.3385521 | I114: -139.395633 | J114: 411.5944639
A115: 1170 | B115: 116.341319 | C115: 126.277344 | D115: 4102.419841 | E115: -971.319564 | F115: -957.401522 | G115: 2661.308538 | H115: -132.12847 | I115: -130.2352006 | J115: 362.0174435
A116: 1180 | B116: 99.583512 | C116: 98.154811 | D116: 5309.713917 | E116: -895.902515 | F116: -898.061303 | G116: 1143.727111 | H116: -120.8367066 | I116: -121.1278776 | J116: 154.2625621
A117: 1190 | B117: 87.166594 | C117: 82.405613 | D117: 5096.72782 | E117: -833.608059 | F117: -835.79871 | G117: -875.53604 | H117: -111.4897842 | I117: -111.7827699 | J117: -117.0973854
A118: 1200 | B118: 76.262728 | C118: 71.695688 | D118: 3958.56681 | E118: -779.140039 | F118: -781.366473 | G118: -2014.14538 | H118: -103.3366571 | I118: -103.6319471 | J118: -267.1343278
A119: 1210 | B119: 66.580186 | C119: 62.740432 | D119: 2865.35794 | E119: -729.68083 | F119: -732.702133 | G119: -2376.185901 | H119: -95.97711651 | I119: -96.37451759 | J119: -312.5468858
A120: 1220 | B120: 58.410337 | C120: 54.961353 | D120: 2009.154339 | E120: -683.72575 | F120: -688.121223 | G120: -2362.103733 | H120: -89.19535478 | I120: -89.76876564 | J120: -308.1479387
A121: 1230 | B121: 52.096917 | C121: 48.38707 | D121: 1392.37002 | E121: -640.464843 | F121: -646.585193 | G121: -2161.361759 | H121: -82.87247613 | I121: -83.66441431 | J121: -279.6678112
A122: 1240 | B122: 47.945472 | C122: 43.171777 | D122: 984.455691 | E122: -599.360344 | F122: -607.444825 | G122: -1900.959391 | H122: -76.928356 | I122: -77.96600529 | J122: -243.9895836
A123: 1250 | B123: 46.411121 | C123: 39.482916 | D123: 723.797894 | E123: -559.883749 | F123: -570.213511 | G123: -1651.697938 | H123: -71.28661297 | I123: -72.60183911 | J123: -210.3007131
A124: 1260 | B124: 48.577966 | C124: 37.576615 | D124: 555.558935 | E124: -521.451203 | F124: -534.383784 | G124: -1436.0558 | H124: -65.86629884 | I124: -67.49985772 | J124: -181.393158
A125: 1270 | B125: 57.280294 | C125: 38.059879 | D125: 444.248301 | E125: -483.912345 | F125: -499.289985 | G125: -1254.887141 | H125: -60.64333994 | I125: -62.57044815 | J125: -157.2610169
A126: 1280 | B126: 79.327039 | C126: 42.574953 | D126: 369.329843 | E126: -451.164031 | F126: -464.056676 | G126: -1102.978624 | H126: -56.09764506 | I126: -57.70071395 | J126: -137.1441407
A127: 1290 | B127: 117.606701 | C127: 55.891434 | D127: 319.488577 | E127: -447.237987 | F127: -428.306353 | G127: -974.840047 | H127: -55.17840029 | I127: -52.84269243 | J127: -120.2717924
A128: 1300 | B128: 113.217222 | C128: 91.165311 | D128: 288.931481 | E128: -484.66352 | F128: -400.244125 | G128: -866.807191 | H128: -59.33584226 | I128: -49.00063918 | J128: -106.1204994
A129: 1310 | B129: 69.315607 | C129: 137.494531 | D129: 274.641695 | E129: -478.393894 | F129: -433.809759 | G129: -778.674799 | H129: -58.12118548 | I129: -52.70455535 | J129: -94.60301017
A130: 1320 | B130: 46.452295 | C130: 86.14809 | D130: 271.416938 | E130: -446.467199 | F130: -474.181817 | G130: -714.970499 | H130: -53.83141034 | I130: -57.17301523 | J130: -86.20537052
A131: 1330 | B131: 39.425528 | C131: 43.185263 | D131: 263.993398 | E131: -414.387402 | F131: -444.742035 | G131: -678.050585 | H131: -49.58782209 | I131: -53.2202205 | J131: -81.13917464
A132: 1340 | B132: 42.145635 | C132: 27.663615 | D132: 237.322511 | E132: -386.428668 | F132: -410.494137 | G132: -651.280797 | H132: =1000*E132/(2*PI()*A132) -> -45.8970393 | I132: =1000*F132/(2*PI()*A132) -> -48.7553515 | J132: =1000*G132/(2*PI()*A132) -> -77.3541479
A133: 1350 | B133: 53.612222 | C133: 22.13459 | D133: 200.761751 | E133: -367.463825 | F133: -380.917631 | G133: -615.005663 | H133: -43.32124752 | I133: -44.90735103 | J133: -72.50458615
A134: 1360 | B134: 62.905781 | C134: 21.227062 | D134: 169.076633 | E134: -367.80807 | F134: -354.639597 | G134: -570.262431 | H134: -43.04299445 | I134: -41.50194476 | J134: -66.73535644
A135: 1370 | B135: 48.83831 | C135: 24.347699 | D135: 145.611957 | E135: -370.756394 | F135: -330.451017 | G135: -524.35228 | H135: -43.0713232 | I135: -38.38898745 | J135: -60.91478634
A136: 1380 | B136: 30.631142 | C136: 33.709577 | D136: 128.600873 | E136: -356.254213 | F136: -309.390079 | G136: -481.054778 | H136: -41.08668043 | I136: -35.68185537 | J136: -55.47988827
A137: 1390 | B137: 20.230131 | C137: 50.337049 | D137: 115.953642 | E137: -336.075931 | F137: -300.696557 | G137: -441.481119 | H137: -38.48068034 | I137: -34.42974347 | J137: -50.54957005
A138: 1400 | B138: 14.726209 | C138: 52.020791 | D138: 106.119444 | E138: -316.551686 | F138: -311.219157 | G138: -405.715086 | H138: -35.98626112 | I138: -35.38004802 | J138: -46.12254387
A139: 1410 | B139: 11.574634 | C139: 33.577466 | D139: 97.890478 | E139: -298.624255 | F139: -308.105453 | G139: -373.426143 | H139: -33.70746547 | I139: -34.77766372 | J139: -42.15079187
A140: 1420 | B140: 9.596214 | C140: 20.794355 | D140: 90.385649 | E140: -282.130236 | F140: -292.02598 | G140: -343.859355 | H140: -31.6214237 | I140: -32.73054805 | J140: -38.54008174
A141: 1430 | B141: 8.253753 | C141: 14.347454 | D141: 83.411284 | E141: -266.79881 | F141: -274.646892 | G141: -316.083675 | H141: -29.69395065 | I141: -30.56741991 | J141: -35.1792163
A142: 1440 | B142: 7.285219 | C142: 10.902778 | D142: 77.279112 | E142: -252.408774 | F142: -258.445148 | G142: -289.64646 | H142: -27.89729449 | I142: -28.56446029 | J142: -32.0129624
A143: 1450 | B143: 6.552662 | C143: 8.862518 | D143: 72.155255 | E143: -238.794937 | F143: -243.501358 | G143: -264.568785 | H143: -26.21061697 | I143: -26.72720329 | J143: -29.03960684
A144: 1460 | B144: 5.978425 | C144: 7.540859 | D144: 67.938226 | E144: -225.833962 | F144: -229.58539 | G144: -240.911584 | H144: -24.61821327 | I144: -25.02715732 | J144: -26.26182838
A145: 1470 | B145: 5.516711 | C145: 6.624671 | D145: 64.456559 | E145: -213.432694 | F145: -216.494853 | G145: -218.625292 | H145: -23.10807365 | I145: -23.43960953 | J145: -23.67026932
A146: 1480 | B146: 5.137573 | C146: 5.945222 | D146: 61.586021 | E146: -201.517027 | F146: -204.068493 | G146: -197.598749 | H146: -21.67056146 | I146: -21.94493878 | J146: -21.24920112
A147: 1490 | B147: 4.825358 | C147: 5.42692 | D147: 59.273655 | E147: -190.030718 | F147: -192.194268 | G147: -177.736441 | H147: -20.29820678 | I147: -20.52930724 | J147: -18.98498869
A148: 1500 | B148: 4.562474 | C148: 5.017719 | D148: 57.493334 | E148: -178.934057 | F148: -180.789763 | G148: -159.034632 | H148: -18.98549311 | I148: -19.18238963 | J148: -16.87409854
A149: 1510 | B149: 4.323411 | C149: 4.686647 | D149: 56.106707 | E149: -168.178669 | F149: -169.790521 | G149: -141.589067 | H149: -17.72613675 | I149: -17.89602696 | J149: -14.92357609
A150: 1520 | B150: 4.11251 | C150: 4.412945 | D150: 54.75289 | E150: -157.714002 | F150: -159.145719 | G150: -125.387567 | H150: -16.51379146 | I150: -16.66370253 | J150: -13.12898098
A151: 1530 | B151: 3.933561 | C151: 4.181398 | D151: 53.113618 | E151: -147.516447 | F151: -148.811634 | G151: -110.047815 | H151: -15.34507956 | I151: -15.47980859 | J151: -11.4474861
A152: 1540 | B152: 3.781427 | C152: 3.985804 | D152: 51.311348 | E152: -137.562184 | F152: -138.749334 | G152: -95.118457 | H152: -14.21668933 | I152: -14.33937815 | J152: -9.830241955
A153: 1550 | B153: 3.652361 | C153: 3.824254 | D153: 49.62761 | E153: -127.825352 | F153: -128.931294 | G153: -80.504077 | H153: -13.12518492 | I153: -13.23874372 | J153: -8.266207609
A154: 1560 | B154: 3.545866 | C154: 3.69188 | D154: 48.167437 | E154: -118.27859 | F154: -119.334175 | G154: -66.283311 | H154: -12.06706555 | I154: -12.17475887 | J154: -6.76238243
A155: 1570 | B155: 3.468627 | C155: 3.583729 | D155: 46.916759 | E155: -108.893218 | F155: -109.935186 | G155: -52.503137 | H155: -11.03878593 | I155: -11.14441291 | J155: -5.322378205
A156: 1580 | B156: 3.433894 | C156: 3.492325 | D156: 45.83745 | E156: -99.641378 | F156: -100.706216 | G156: -39.162153 | H156: -10.03697332 | I156: -10.14423549 | J156: -3.944841919
A157: 1590 | B157: 3.468965 | C157: 3.429806 | D157: 44.897402 | E157: -90.477123 | F157: -91.598888 | G157: -26.236214 | H157: -9.056529159 | I157: -9.168814973 | J157: -2.626178079
A158: 1600 | B158: 3.691056 | C158: 3.451672 | D158: 44.073446 | E158: -81.311883 | F158: -82.577634 | G158: -13.694251 | H158: -8.08824257 | I158: -8.21414915 | J158: -1.362192337
A159: 1610 | B159: 4.720964 | C159: 3.697781 | D159: 43.348992 | E159: -72.141947 | F159: -73.603627 | G159: -1.504604 | H159: -7.131520167 | I159: -7.276013085 | J159: -0.1487361267
A160: 1620 | B160: 6.399461 | C160: 4.791448 | D160: 42.711932 | E160: -66.279332 | F160: -65.133557 | G160: 10.362752 | H160: -6.511532909 | I160: -6.398967628 | J160: 1.018076052
A161: 1630 | B161: 3.814492 | C161: 4.165794 | D161: 42.153208 | E161: -58.455348 | F161: -58.503587 | G161: 21.935355 | H161: -5.70764269 | I161: -5.712352797 | J161: 2.141791519
A162: 1640 | B162: 3.183887 | C162: 3.229266 | D162: 41.665613 | E162: -49.474941 | F162: -49.757552 | G162: 33.237876 | H162: -4.801330134 | I162: -4.828756315 | J162: 3.225592843
A163: 1650 | B163: 3.002103 | C163: 3.012007 | D163: 41.242482 | E163: -40.855373 | F163: -41.157106 | G163: 44.292194 | H163: -3.940808827 | I163: -3.96991325 | J163: 4.272316131
A164: 1660 | B164: 2.92603 | C164: 2.933382 | D164: 40.876337 | E164: -32.443097 | F164: -32.763599 | G164: 55.118407 | H164: -3.110529673 | I164: -3.141258274 | J164: 5.284558391
A165: 1670 | B165: 2.888985 | C165: 2.89618 | D165: 40.558698 | E165: -24.157086 | F165: -24.496549 | G165: 65.73716 | H165: -2.302227334 | I165: -2.334578959 | J165: 6.264906562
A166: 1680 | B166: 2.872621 | C166: 2.878308 | D166: 40.282641 | E166: -15.956081 | F166: -16.315552 | G166: 76.171387 | H166: -1.511600693 | I166: -1.545655208 | J166: 7.216102835
A167: 1690 | B167: 2.871083 | C167: 2.873289 | D167: 40.04594 | E167: -7.813746 | F167: -8.196424 | G167: 86.44426 | H167: -0.7358557988 | I167: -0.7718943167 | J167: 8.140846912
A168: 1700 | B168: 2.883186 | C168: 2.879355 | D168: 39.850263 | E168: 0.29093 | F168: -0.121086 | G168: 96.575334 | H168: 0.027237028 | I168: -0.01133613849 | J168: 9.041436345
A169: 1710 | B169: 2.910747 | C169: 2.896997 | D169: 39.697801 | E169: 8.378443 | F169: 7.926749 | G169: 106.579778 | H169: 0.7798073795 | I169: 0.7377668339 | J169: 9.919706727
A170: 1720 | B170: 2.95946 | C170: 2.928849 | D170: 39.589557 | E170: 16.47287 | F170: 15.964271 | G170: 116.470197 | H170: 1.524266679 | I170: 1.477205025 | J170: 10.77721371
A171: 1730 | B171: 3.043244 | C171: 2.981281 | D171: 39.5256 | E171: 24.608172 | F171: 24.012669 | G171: 126.258095 | H171: 2.263879893 | I171: 2.209095357 | J171: 11.61537568
A172: 1740 | B172: 3.199507 | C172: 3.069839 | D172: 39.505719 | E172: 32.841945 | F172: 32.102803 | G172: 135.954227 | H172: 3.003998786 | I172: 2.936390681 | J172: 12.43550992
A173: 1750 | B173: 3.555906 | C173: 3.239181 | D173: 39.529682 | E173: 41.288195 | F173: 40.288138 | G173: 145.568311 | H173: 3.754983043 | I173: 3.664032178 | J173: 13.23880929
A174: 1760 | B174: 4.743882 | C174: 3.659935 | D174: 39.596866 | E174: 50.078526 | F174: 48.667278 | G174: 155.108579 | H174: 4.52854827 | I174: 4.400930603 | J174: 14.02630515
A175: 1770 | B175: 7.669183 | C175: 5.205657 | D175: 39.705166 | E175: 56.03383 | F175: 57.032547 | G175: 164.581697 | H175: 5.038452556 | I175: 5.128255239 | J175: 14.79886476
A176: 1780 | B176: 5.923656 | C176: 5.868251 | D176: 39.849547 | E176: 63.229959 | F176: 62.051598 | G176: 173.993886 | H176: 5.653573329 | I176: 5.548212668 | J176: 15.55729608
A177: 1790 | B177: 8.894099 | C177: 4.239503 | D177: 40.021677 | E177: 69.62498 | F177: 70.483945 | G177: 183.353553 | H177: 6.190592028 | I177: 6.266965506 | J177: 16.3025834
A178: 1800 | B178: 5.022218 | C178: 4.835921 | D178: 40.211868 | E178: 75.013417 | F178: 79.682419 | G178: 192.673994 | H178: 6.632642285 | I178: 7.045472701 | J178: 17.03612142
A179: 1810 | B179: 3.719642 | C179: 8.329806 | D179: 40.412997 | E179: 84.188293 | F179: 86.115482 | G179: 201.974485 | H179: 7.402753028 | I179: 7.572212507 | J179: 17.75979982
A180: 1820 | B180: 3.430728 | C180: 4.892972 | D180: 40.62549 | E180: 92.914865 | F180: 91.324734 | G180: 211.277728 | H180: 8.12519783 | I180: 7.986144419 | J180: 18.47576636
A181: 1830 | B181: 3.365664 | C181: 3.707011 | D181: 40.858255 | E181: 101.424334 | F181: 100.464003 | G181: 220.60265 | H181: 8.820865632 | I181: 8.737345727 | J181: 19.18579356
A182: 1840 | B182: 3.38024 | C182: 3.478625 | D182: 41.122497 | E182: 109.867183 | F182: 109.216602 | G182: 229.959978 | H182: 9.503209379 | I182: 9.446935911 | J182: 19.89090609
A183: 1850 | B183: 3.438014 | C183: 3.45027 | D183: 41.425955 | E183: 118.316561 | F183: 117.797715 | G183: 239.354966 | H183: 10.17873813 | I183: 10.13410196 | J183: 20.59163567
A184: 1860 | B184: 3.532831 | C184: 3.493398 | D184: 41.772193 | E184: 126.817241 | F184: 126.34676 | G184: 248.791778 | H184: 10.85139289 | I184: 10.81113516 | J184: 21.28840928
A185: 1870 | B185: 3.678449 | C185: 3.580549 | D185: 42.162298 | E185: 135.405098 | F185: 134.931452 | G185: 258.275592 | H185: 11.52427308 | I185: 11.48396126 | J185: 21.98173109
A186: 1880 | B186: 3.927434 | C186: 3.717451 | D186: 42.5963 | E186: 144.112463 | F186: 143.594296 | G186: 267.812864 | H186: 12.20011215 | I186: 12.15624575 | J186: 22.67220273
A187: 1890 | B187: 4.454691 | C187: 3.949371 | D187: 43.073767 | E187: 152.91164 | F187: 152.363834 | G187: 277.411112 | H187: 12.87653088 | I187: 12.8304007 | J187: 23.36050251
A188: 1900 | B188: 5.468228 | C188: 4.423874 | D188: 43.593944 | E188: 161.131968 | F188: 161.182606 | G188: 287.078942 | H188: 13.49734168 | I188: 13.50158341 | J188: 24.04738562
A189: 1910 | B189: 5.011385 | C189: 5.073517 | D189: 44.156109 | E189: 168.685161 | F189: 169.43405 | G189: 296.826416 | H189: 14.05606136 | I189: 14.11846418 | J189: 24.73371275
A190: 1920 | B190: 4.312028 | C190: 4.567103 | D190: 44.76047 | E190: 177.780963 | F190: 177.750093 | G190: 306.665127 | H190: 14.73683284 | I190: 14.73427392 | J190: 25.42045356
A191: 1930 | B191: 4.162746 | C191: 4.231726 | D191: 45.408922 | E191: 187.170824 | F191: 187.025383 | G191: 316.607375 | H191: 15.43479888 | I191: 15.42280528 | J191: 26.10861593
A192: 1940 | B192: 4.191763 | C192: 4.207532 | D192: 46.104772 | E192: 196.636914 | F192: 196.478658 | G192: 326.665084 | H192: 16.13182312 | I192: 16.11884002 | J192: 26.79915611
A193: 1950 | B193: 4.28706 | C193: 4.286256 | D193: 46.851813 | E193: 206.220619 | F193: 206.046454 | G193: 336.849538 | H193: 16.83129789 | I193: 16.8170829 | J193: 27.49295849
A194: 1960 | B194: 4.418309 | C194: 4.409356 | D194: 47.653799 | E194: 215.961103 | F194: 215.763995 | G194: 347.171895 | H194: 17.53636585 | I194: 17.52036038 | J194: 28.19087918
A195: 1970 | B195: 4.578066 | C195: 4.56152 | D195: 48.514532 | E195: 225.88804 | F195: 225.661904 | G195: 357.643718 | H195: 18.24933916 | I195: 18.23106979 | J195: 28.89378964
A196: 1980 | B196: 4.767857 | C196: 4.740775 | D196: 49.43821 | E196: 236.025718 | F196: 235.764896 | G196: 368.277189 | H196: =1000*E196/(2*PI()*A196) -> 18.97205036 | I196: =1000*F196/(2*PI()*A196) -> 18.95108515 | J196: =1000*G196/(2*PI()*A196) -> 29.60259346
A197: 1990 | B197: 4.994304 | C197: 4.951134 | D197: 50.429722 | E197: 246.393766 | F197: 246.093556 | G197: 379.085069 | H197: 19.70592252 | I197: 19.68191251 | J197: 30.3182224
A198: 2000 | B198: 5.265152 | C198: 5.199432 | D198: 51.494846 | E198: 257.004285 | F198: 256.663112 | G198: 390.08059 | H198: 20.45175118 | I198: 20.42460149 | J198: 31.04162705
A199: 2010 | B199: 5.576965 | C199: 5.488378 | D199: 52.640458 | E199: 267.860268 | F199: 267.480487 | G199: 401.277332 | H199: 21.20959488 | I199: 21.17952323 | J199: 31.77376664
A200: 2020 | B200: 5.896735 | C200: 5.800674 | D200: 53.874815 | E200: 278.975536 | F200: 278.550518 | G200: 412.688982 | H200: 21.98036414 | I200: 21.94687715 | J200: 32.51558982
... 48 more rows
